fUSD/lending_fUSD_20240907
["ID","MTS","AMOUNT","RATE_DAILY","PERIOD"]
[337476920,1725682243437,-150.0,0.00014941,2]
[337476921,1725682243446,-150.0,0.00014941,2]
[337476922,1725682243456,-150.0,0.00014942,2]
[337476923,1725682243466,-150.0,0.00014946,2]
[337476924,1725682243476,-150.0,0.00014957,2]
[337476925,1725682243486,-150.0,0.00014959,2]
[337476926,1725682243498,-150.0,0.00014961,2]
[337476927,1725682243509,-150.0,0.00014963,2]
[337476928,1725682243521,-150.0,0.00014964,2]
[337476929,1725682243530,-150.0,0.00014966,2]
[337476930,1725682243540,-150.0,0.00014966,2]
[337476931,1725682243550,-150.0,0.00014967,2]
[337476932,1725682243558,-79.22854795,0.00014969,2]
[337476933,1725682243574,-70.77145205,0.00014969,2]
[337476934,1725682243583,-150.0,0.0001497,2]
[337476935,1725682243592,-150.0,0.00014979,2]
[337476936,1725682243601,-150.0,0.00014983,2]
[337476938,1725682243610,-150.0,0.00014987,2]
[337476939,1725682243619,-67.36001715,0.00014988,2]
[337476940,1725682243630,-82.63998285,0.00014988,2]
[337476941,1725682243639,-150.0,0.00014991,2]
[337476942,1725682243647,-150.0,0.00014993,2]
[337476943,1725682243656,-150.0,0.00014994,2]
[337476944,1725682243666,-150.0,0.00014997,2]
[337476945,1725682243676,-318836.67578867,0.00015,2]
[337476946,1725682243687,-747.85523931,0.00015,2]
[337476947,1725682244271,-150.0,0.00014952,2]
[337476948,1725682244280,-430.5241446,0.00015,2]
[337476949,1725682244297,-1445.11600172,0.00015,2]
[337476950,1725682244309,-528.85885242,0.00015,2]
[337476951,1725682244323,-7724.67253932,0.00015,2]
[337476965,1725682245977,-344.849717,0.00014998,2]
[337476967,1725682245988,-376.30298981,0.00014998,2]
[337476969,1725682245998,-235.66401019,0.00015,2]
[337476979,1725682246081,-535.73610698,0.00015,2]
[337476982,1725682246137,-371.88291753,0.00015,2]
[337476983,1725682246148,-1324.8,0.00015,2]
[337476984,1725682246190,-957.52,0.00015,2]
[337476985,1725682246246,-16111.50349894,0.00015,2]
[337476986,1725682246258,-25773.32341151,0.00015,2]
[337476987,1725682246271,-335025.25171471,0.00015,2]
[337476988,1725682246300,-298.66236919,0.00015,2]
[337477025,1725682494849,5000.0,0.00031417,33]
[337477026,1725682507127,5000.0,0.00031417,34]
[337477027,1725682573697,150.0,0.00010959,2]
[337477028,1725682573719,7.09,0.00010959,2]
[337477031,1725682600825,569.0,0.00011883,2]
[337477047,1725683156251,150.0,6.94e-05,2]
[337477048,1725683156273,150.0,6.94e-05,2]
[337477049,1725683156292,150.0,6.94e-05,2]
[337477050,1725683156312,150.0,6.94e-05,2]
[337477051,1725683156336,150.0,6.94e-05,2]
[337477055,1725683179761,586.26,0.00011615,2]
[337477062,1725683261326,170.6,0.00010959,2]
[337477066,1725683348429,6000.0,0.00031427,30]
[337477091,1725683391297,-342.59953585,0.000129,2]
[337477092,1725683391322,-171.02536145,0.000129,2]
[337477093,1725683391348,-690.10271914,0.000129,2]
[337477094,1725683391372,-500.0,0.00012973,2]
[337477095,1725683391397,-500.0,0.00012973,2]
[337477096,1725683391420,-150.0,0.00012999,2]
[337477097,1725683391816,1108.301799,0.00012835,2]
[337477098,1725683401449,300.0,0.00012999,2]
[337477099,1725683402528,150.0,0.00012999,2]
[337477100,1725683415997,150.99,0.0001299,2]
[337477101,1725683416024,181.88604511,0.000129,2]
[337477102,1725683422084,331.75531994,0.000129,2]
[337477103,1725683428538,342.59953584,0.000129,2]
[337477112,1725683432166,-571.52115498,0.00013,2]
[337477113,1725683432222,-2612.32441227,0.00013,2]
[337477114,1725683432282,-274238.8348086,0.00013,2]
[337477115,1725683432293,-3065.28778418,0.00013,2]
[337477116,1725683432340,-456.33428005,0.00013,2]
[337477117,1725683432353,-9423.99800782,0.00013,2]
[337477118,1725683432365,-500.0,0.00013,2]
[337477119,1725683432381,-1516.47244228,0.00013,2]
[337477120,1725683432392,-1472.97,0.00013,2]
[337477121,1725683432414,-718.60973769,0.00013,2]
[337477122,1725683432458,-16369.32727548,0.00013,2]
[337477127,1725683432795,-30000.0,0.00013,2]
[337477130,1725683438234,-287.34726879,0.00013,2]
[337477131,1725683438246,-471.26757877,0.00013,2]
[337477132,1725683438257,-67554.72629143,0.00013,2]
[337477133,1725683438268,-27428.65124824,0.00013,2]
[337477134,1725683438288,-646.48923273,0.00013,2]
[337477135,1725683438302,-2305.84255927,0.00013,2]
[337477136,1725683438407,-897.58477711,0.00013,2]
[337477137,1725683438461,-1109.20886868,0.00013,2]
[337477150,1725683440215,-1641.30252,0.00013,2]
[337477151,1725683440328,-923.08443828,0.00013,2]
[337477152,1725683440340,-1103.41846136,0.00013,2]
[337477153,1725683440351,-311.142,0.00013,2]
[337477154,1725683440440,-501.60663,0.00013,2]
[337477155,1725683440559,-1343130.39538059,0.00013,2]
[337477156,1725683440570,-45129.82602882,0.00013,2]
[337477157,1725683440583,-519435.59899997,0.00013,2]
[337477158,1725683440594,-37533.08178596,0.00013,2]
[337477159,1725683440605,-3017.256,0.00013,2]
[337477160,1725683440616,-3380.424834,0.00013,2]
[337477161,1725683440629,-362.572002,0.00013,2]
[337477162,1725683440640,-29574.57782437,0.00013,2]
[337477163,1725683440652,-2220.6354342,0.00013,2]
[337477164,1725683440663,-1023.25,0.00013,2]
[337477175,1725683443111,-30000.0,0.00013,2]
[337477176,1725683443124,-4149.00698587,0.00013,2]
[337477177,1725683443876,-340.68338463,0.00013,2]
[337477178,1725683443891,-947.40643778,0.00013,2]
[337477179,1725683443902,-364.71060932,0.00013,2]
[337477183,1725683446216,-302.0,0.00013,2]
[337477184,1725683446274,-1668.32821834,0.00013,2]
[337477188,1725683446550,-896.1847932,0.00013,2]
[337477189,1725683446562,-9309.10477623,0.00013,2]
[337477190,1725683446572,-5114.97780404,0.00013,2]
[337477191,1725683446584,-17217.40909647,0.00013,2]
[337477192,1725683446594,-273.5,0.00013,2]
[337477193,1725683446605,-8079.87362539,0.00013,2]
[337477194,1725683446616,-1301.33763081,0.00013,2]
[337477195,1725683446627,-1794.36314389,0.00013,2]
[337477196,1725683449548,-29728.73968367,0.00013,2]
[337477204,1725683751918,229.91,0.00010959,2]
[337477205,1725683765810,750.0,0.00011,2]
[337477212,1725684045301,741.47,0.00011248,2]
[337477217,1725684232582,150.0,0.00010959,2]
[337477218,1725684232603,16.21,0.00010959,2]
[337477219,1725684253603,2000.0,0.0003141,30]
[337477220,1725684261519,2000.0,0.0003141,30]
[337477221,1725684264785,2000.0,0.0003141,30]
[337477228,1725684404947,155.85555883,0.00011688,2]
[337477251,1725684605638,-3639.84,0.00012072,2]
[337477252,1725684605669,-5485.64086057,0.00012072,2]
[337477253,1725684605710,-9125.48086057,0.00012072,2]
[337477254,1725684605752,-9125.48086057,0.00012072,2]
[337477255,1725684605801,-163.39741829,0.00012072,2]
[337477256,1725684605831,-843.15493529,0.00012072,2]
[337477258,1725684614970,740.95,0.00010142,2]
[337477259,1725684623327,150.0,0.00011951,2]
[337477260,1725684623348,100.0,0.00011951,2]
[337477263,1725684632469,-0.0137,0.0001206,2]
[337477264,1725684632481,-249.9863,0.0001206,2]
[337477265,1725684632490,-656.84506471,0.00012072,2]
[337477266,1725684632499,-274.09,0.00012091,2]
[337477267,1725684632508,-179.78,0.00012097,2]
[337477268,1725684632517,-1475.62721228,0.000121,2]
[337477269,1725684632532,-494.43980472,0.000121,2]
[337477270,1725684632543,-351.282983,0.000121,2]
[337477271,1725684632551,-142.69022095,0.000121,2]
[337477272,1725684632562,-6149.07558323,0.000121,2]
[337477273,1725684632573,-2519.10879577,0.000121,2]
[337477274,1725684632584,-1975.23540005,0.000121,2]
[337477275,1725684632593,-250.0,0.00012103,2]
[337477276,1725684632603,-7489.61,0.00012112,2]
[337477278,1725684632611,-326.12250636,0.00012112,2]
[337477279,1725684632622,-2271.56749364,0.00012112,2]
[337477280,1725684632631,-198.67548133,0.00012115,2]
[337477281,1725684632642,-451.78451867,0.00012115,2]
[337477282,1725684632651,-164.01,0.00012123,2]
[337477283,1725684632660,-1000.0,0.00012134,2]
[337477285,1725684632669,-150.0,0.00012157,2]
[337477287,1725684632678,-499.99,0.00012157,2]
[337477288,1725684632686,-740.95,0.00012406,2]
[337477289,1725684632695,-179.32,0.00012615,2]
[337477290,1725684632705,-150.0,0.00012877,2]
[337477291,1725684632714,-150.0,0.00012898,2]
[337477292,1725684632723,-601.47920238,0.00012899,2]
[337477293,1725684632735,-287.37338502,0.00012899,2]
[337477294,1725684632745,-4411.92248121,0.00012899,2]
[337477295,1725684632756,-777.495996,0.00012899,2]
[337477296,1725684632767,-413.47322908,0.00012899,2]
[337477297,1725684632778,-300.0,0.00012899,2]
[337477298,1725684632793,-521.44331218,0.00012899,2]
[337477299,1725684632805,-1703.61103245,0.00012899,2]
[337477300,1725684632815,-615.77052,0.00012899,2]
[337477301,1725684632827,-496.77,0.00012899,2]
[337477302,1725684636936,150.0,0.00011997,2]
[337477303,1725684636956,150.0,0.00011997,2]
[337477304,1725684637136,150.0,0.00011997,2]
[337477305,1725684637156,150.0,0.00011997,2]
[337477306,1725684637176,150.0,0.00011997,2]
[337477307,1725684637195,150.0,0.00011997,2]
[337477308,1725684637214,150.0,0.00011997,2]
[337477309,1725684637234,150.0,0.00011997,2]
[337477310,1725684637254,150.0,0.00011997,2]
[337477311,1725684637273,150.0,0.00011997,2]
[337477312,1725684637293,150.0,0.00011997,2]
[337477313,1725684637312,150.0,0.00011997,2]
[337477314,1725684637332,150.0,0.00011997,2]
[337477315,1725684637353,150.0,0.00011997,2]
[337477316,1725684637372,150.0,0.00011997,2]
[337477317,1725684637391,150.0,0.00011997,2]
[337477318,1725684637411,150.0,0.00011997,2]
[337477319,1725684637430,238.58197524,0.00011997,2]
[337477320,1725684637451,484.88382476,0.00011997,2]
[337477322,1725684638302,-161.95141977,0.000129,2]
[337477323,1725684638311,-548.54143151,0.000129,2]
[337477324,1725684638321,-181.53554582,0.000129,2]
[337477325,1725684638330,-3231.21508936,0.000129,2]
[337477326,1725684638339,-321.83267328,0.000129,2]
[337477327,1725684638348,-363.55146632,0.000129,2]
[337477328,1725684638357,-852.232352,0.000129,2]
[337477329,1725684638367,-221.1702133,0.000129,2]
[337477330,1725684638376,-573.04374828,0.00012952,2]
[337477331,1725684638442,-424.25625172,0.00012952,2]
[337477332,1725684638451,-91.0308028,0.00012973,2]
[337477333,1725684638462,-408.9691972,0.00012973,2]
[337477334,1725684638471,-500.0,0.00012973,2]
[337477335,1725684638480,-225.73867903,0.00012989,2]
[337477336,1725684638491,-6379.44167495,0.00012989,2]
[337477337,1725684638500,-2260.98,0.00012994,2]
[337477338,1725684638510,-14637.07063068,0.00012999,2]
[337477339,1725684638521,-4183.97458834,0.00012999,2]
[337477340,1725684638532,-3861.57904239,0.00012999,2]
[337477341,1725684638542,-1248.82727493,0.00012999,2]
[337477342,1725684638553,-1167.56978197,0.00012999,2]
[337477343,1725684638568,-2489.57862817,0.00012999,2]
[337477344,1725684638580,-1043.64469996,0.00012999,2]
[337477345,1725684638592,-33457.7471038,0.00012999,2]
[337477346,1725684638603,-19137.89899619,0.00012999,2]
[337477347,1725684638639,-2234.28306925,0.00012999,2]
[337477348,1725684638650,-4745.94753637,0.00012999,2]
[337477349,1725684638663,-10057.58,0.00012999,2]
[337477350,1725684638675,-3955.01642289,0.00012999,2]
[337477351,1725684638686,-7577.68181974,0.00012999,2]
[337477352,1725684638698,-6340.11526036,0.00012999,2]
[337477353,1725684638710,-22033.27718853,0.00012999,2]
[337477354,1725684638722,-765.98151754,0.00012999,2]
[337477355,1725684638737,-709.08266212,0.00012999,2]
[337477368,1725684640352,-19988.33233355,0.00012999,2]
[337477369,1725684640363,-307.46014093,0.00012999,2]
[337477370,1725684640375,-314.86242696,0.00012999,2]
[337477371,1725684640387,-1892.44684,0.00012999,2]
[337477372,1725684640399,-321.07480241,0.00012999,2]
[337477373,1725684640411,-1079.800005,0.00012999,2]
[337477374,1725684640422,-806.98999891,0.00012999,2]
[337477375,1725684640431,-4713.44184439,0.00013,2]
[337477376,1725684640443,-707.29759084,0.00013,2]
[337477377,1725684640464,-503.4787228,0.00013,2]
[337477378,1725684640475,-11455.63219427,0.00013,2]
[337477379,1725684640487,-17049.04648691,0.00013,2]
[337477380,1725684640498,-347.78074878,0.00013,2]
[337477381,1725684640520,-6174.05112222,0.00013,2]
[337477382,1725684640577,-3593.08737091,0.00013,2]
[337477383,1725684640589,-322.85018007,0.00013,2]
[337477384,1725684640633,-540.18000005,0.00013,2]
[337477388,1725684643316,-2257.25906638,0.00013,2]
[337477389,1725684643328,-460.71689055,0.00013,2]
[337477390,1725684643340,-367467.42004716,0.00013,2]
[337477391,1725684643351,-15973.09296529,0.00013,2]
[337477394,1725684644029,-456.4016894,0.00013,2]
[337477398,1725684646413,-21162.60122287,0.00013,2]
[337477404,1725684646469,-1675.2,0.00013,2]
[337477406,1725684646579,-14993.26991951,0.00013,2]
[337477407,1725684646636,-3337.89376783,0.00013,2]
[337477408,1725684646693,-1766.8391407,0.00013,2]
[337477409,1725684646751,-321.56691331,0.00013,2]
[337477411,1725684901228,162.98,0.00010959,2]
[337477419,1725685240961,782.19,0.00011235,2]
[337477420,1725685293621,1000.0,0.00031442,30]
[337477421,1725685302520,1007.0,0.00031442,30]
[337477422,1725685318679,1000.0,0.00031442,30]
[337477423,1725685319043,1000.0,0.00031442,30]
[337477424,1725685320757,1000.0,0.00031442,30]
[337477428,1725685470483,7200.0,0.00027,120]
[337477431,1725685571440,750.0,0.00011,2]
[337477432,1725685613966,160.74,0.00010959,2]
[337477444,1725685717362,150.0,0.00012,2]
[337477445,1725685717383,50.0,0.00012,2]
[337477446,1725685722551,1500.0,0.00012,2]
[337477549,1725685793154,150.0,0.00012003,2]
[337477550,1725685793175,50.0,0.00012003,2]
[337477551,1725685801005,586.4305126,0.00031442,120]
[337477552,1725685823667,1505.18,0.00011986,2]
[337477558,1725685831477,-172.41,0.00012037,2]
[337477559,1725685831486,-250.0,0.00012042,2]
[337477560,1725685831496,-187.54,0.0001208,2]
[337477561,1725685831509,-300.0,0.00012102,2]
[337477562,1725685831521,-505.48626018,0.00012103,2]
[337477563,1725685831533,-1679.06194262,0.00012103,2]
[337477564,1725685831548,-3302.4465138,0.00012103,2]
[337477565,1725685831559,-929.99995,0.00012103,2]
[337477566,1725685831599,-17483.0053334,0.00012103,2]
[337477567,1725685831609,-213.2,0.00012126,2]
[337477568,1725685831618,-250.0,0.00012139,2]
[337477569,1725685831627,-500.0,0.00012145,2]
[337477570,1725685831637,-165.18,0.00012157,2]
[337477571,1725685831647,-800.0,0.00012175,2]
[337477572,1725685831656,-753.14939819,0.000123,2]
[337477573,1725685831665,-188.652,0.0001274,2]
[337477574,1725685831675,-499.99,0.0001274,2]
[337477575,1725685831684,-5790.5417,0.000128,2]
[337477576,1725685831693,-150.0,0.00012899,2]
[337477577,1725685831703,-158.84360261,0.000129,2]
[337477578,1725685831712,-3348.8044,0.000129,2]
[337477579,1725685831721,-212.5945,0.000129,2]
[337477580,1725685831731,-2326.4415,0.000129,2]
[337477581,1725685831740,-3180.1108,0.000129,2]
[337477582,1725685831749,-500.0,0.000129,2]
[337477583,1725685831761,-168.68225784,0.000129,2]
[337477584,1725685831770,-38961.8459,0.000129,2]
[337477585,1725685831779,-16710.2738,0.000129,2]
[337477586,1725685831788,-936.5976,0.000129,2]
[337477587,1725685831797,-7527.3541,0.000129,2]
[337477588,1725685831807,-1196.7804,0.000129,2]
[337477589,1725685831816,-365.69428766,0.000129,2]
[337477590,1725685831825,-6221.4924,0.000129,2]
[337477591,1725685831834,-4978.3812,0.000129,2]
[337477592,1725685831843,-245000.0,0.000129,2]
[337477593,1725685831852,-321.83267329,0.000129,2]
[337477594,1725685831862,-510.2167947,0.00012973,2]
[337477595,1725685831871,-500.0,0.00012973,2]
[337477596,1725685831881,-152.31,0.0001299,2]
[337477597,1725685831890,-500.0,0.00012999,2]
[337477598,1725685831900,-500.0,0.00012999,2]
[337477599,1725685831909,-500.0,0.00012999,2]
[337477600,1725685831919,-500.0,0.00012999,2]
[337477601,1725685831929,-270.95689603,0.00012999,2]
[337477602,1725685831941,-229.04310397,0.00012999,2]
[337477603,1725685831951,-500.0,0.00012999,2]
[337477604,1725685831961,-393.77421558,0.00012999,2]
[337477605,1725685831970,-183.18268045,0.00012999,2]
[337477606,1725685831986,-316.81731955,0.00012999,2]
[337477607,1725685831995,-206.25241566,0.00012999,2]
[337477608,1725685832006,-500.0,0.00012999,2]
[337477609,1725685832015,-500.0,0.00012999,2]
[337477610,1725685832025,-990.0,0.00013,2]
[337477611,1725685832035,-449926.82797476,0.00013,2]
[337477612,1725685832292,-1230.01759857,0.00013,2]
[337477613,1725685832303,-2514.72665498,0.00013,2]
[337477614,1725685832319,-22916.49869489,0.00013,2]
[337477615,1725685832335,-2722.12504729,0.00013,2]
[337477616,1725685832348,-9835.58180308,0.00013,2]
[337477617,1725685832361,-3586.11267,0.00013,2]
[337477634,1725685837532,-6157.08148719,0.00013,2]
[337477635,1725685837544,-16741.38379213,0.00013,2]
[337477638,1725685837755,-16350.60786423,0.00013,2]
[337477639,1725685837770,-484.43905378,0.00013,2]
[337477640,1725685837781,-2731.97215509,0.00013,2]
[337477641,1725685837793,-2200.0,0.00013,2]
[337477642,1725685837804,-1495.67112458,0.00013,2]
[337477643,1725685837815,-4236.72490095,0.00013,2]
[337477644,1725685837830,-2549.55900004,0.00013,2]
[337477645,1725685837841,-686.50000001,0.00013,2]
[337477646,1725685837852,-27654.0,0.00013,2]
[337477647,1725685837879,-1605.98,0.00013,2]
[337477648,1725685837891,-1116.50326628,0.00013,2]
[337477649,1725685837902,-712.43225591,0.00013,2]
[337477662,1725685839588,-1252.00626046,0.00013,2]
[337477663,1725685839600,-1001.18094296,0.00013,2]
[337477664,1725685839612,-2606.95999806,0.00013,2]
[337477665,1725685839646,-4285.7862628,0.00013,2]
[337477666,1725685839658,-5568.99582229,0.00013,2]
[337477667,1725685839669,-500.0,0.00013,2]
[337477668,1725685839680,-3470.18292958,0.00013,2]
[337477669,1725685839784,-374.07477111,0.00013,2]
[337477670,1725685839815,-5719.53545259,0.00013,2]
[337477671,1725685839979,-291.88343201,0.00013,2]
[337477672,1725685839990,-462.7030002,0.00013,2]
[337477714,1725685845543,-122784.18588911,0.00013,2]
[337477715,1725685845554,-1685678.46611656,0.00013,2]
[337477716,1725685845566,-384635.91748477,0.00013,2]
[337477717,1725685845576,-2842.12579322,0.00013,2]
[337477718,1725685845585,-1354796.40777821,0.00013,2]
[337477719,1725685845594,-200.399996,0.00013,2]
[337477720,1725685845603,-613.9,0.00013,2]
[337477721,1725685845612,-800.0,0.00013,2]
[337477722,1725685845621,-1391.56581,0.00013,2]
[337477723,1725685845630,-4212.70542555,0.00013,2]
[337477724,1725685845639,-500.0,0.00013014,2]
[337477725,1725685845648,-250.0,0.00013132,2]
[337477726,1725685845658,-1525.89,0.00013134,2]
[337477727,1725685845666,-171.55,0.00013145,2]
[337477728,1725685845676,-320.0,0.00013181,2]
[337477729,1725685845685,-158.84360256,0.00013186,2]
[337477730,1725685845695,-422.14,0.000132,2]
[337477731,1725685845705,-150.0,0.000132,2]
[337477732,1725685845715,-150.0,0.000132,2]
[337477733,1725685845724,-422.14,0.000132,2]
[337477734,1725685845733,-150.0,0.000132,2]
[337477735,1725685845742,-422.14,0.000132,2]
[337477736,1725685845751,-422.14,0.000132,2]
[337477737,1725685845760,-150.0,0.000132,2]
[337477738,1725685845770,-150.0,0.000132,2]
[337477739,1725685845779,-420.94,0.000132,2]
[337477740,1725685845788,-150.0,0.000132,2]
[337477741,1725685845797,-150.0,0.000132,2]
[337477742,1725685845806,-150.0,0.000132,2]
[337477743,1725685845815,-150.0,0.000132,2]
[337477744,1725685845824,-150.0,0.000132,2]
[337477745,1725685845833,-170.48,0.00013219,2]
[337477746,1725685845842,-170.48,0.00013233,2]
[337477747,1725685845851,-784.0,0.00013234,2]
[337477748,1725685845860,-170.48,0.00013246,2]
[337477749,1725685845869,-170.48,0.00013259,2]
[337477750,1725685845878,-170.48,0.00013272,2]
[337477751,1725685845887,-170.48,0.00013286,2]
[337477752,1725685845897,-150.0,0.0001337,2]
[337477753,1725685845906,-150.0,0.0001337,2]
[337477754,1725685845915,-150.0,0.0001337,2]
[337477755,1725685845924,-150.0,0.0001337,2]
[337477756,1725685845933,-150.0,0.0001337,2]
[337477757,1725685845942,-150.0,0.0001337,2]
[337477758,1725685845950,-150.0,0.0001337,2]
[337477759,1725685845959,-150.0,0.0001337,2]
[337477760,1725685845968,-150.0,0.0001337,2]
[337477761,1725685845977,-150.0,0.0001337,2]
[337477762,1725685845986,-158.84360256,0.00013471,2]
[337477763,1725685845995,-782.19,0.00013498,2]
[337477764,1725685846004,-1000.0,0.00013521,2]
[337477765,1725685846014,-360.0,0.00013537,2]
[337477766,1725685846022,-800.0,0.00013697,2]
[337477767,1725685846032,-161.44,0.00013699,2]
[337477768,1725685846041,-3383.74,0.00013699,2]
[337477769,1725685846050,-158.84360256,0.00013757,2]
[337477770,1725685846059,-205.93,0.00013776,2]
[337477771,1725685846069,-544.75,0.00013863,2]
[337477772,1725685846079,-365.69428766,0.000139,2]
[337477773,1725685846087,-158.84360256,0.00014043,2]
[337477774,1725685846096,-1391.56581,0.0001405,2]
[337477775,1725685846105,-224.26,0.00014192,2]
[337477776,1725685846114,-150.0,0.00014192,2]
[337477777,1725685846123,-150.0,0.00014192,2]
[337477779,1725685846132,-150.0,0.00014192,2]
[337477780,1725685846141,-150.0,0.00014192,2]
[337477781,1725685846150,-150.0,0.00014192,2]
[337477782,1725685846159,-300.0,0.00014192,2]
[337477783,1725685846168,-150.0,0.00014192,2]
[337477784,1725685846176,-150.0,0.00014192,2]
[337477785,1725685846185,-150.0,0.00014192,2]
[337477786,1725685846194,-150.0,0.00014192,2]
[337477787,1725685846202,-150.0,0.00014192,2]
[337477788,1725685846211,-150.0,0.00014192,2]
[337477789,1725685846220,-150.0,0.00014192,2]
[337477790,1725685846230,-1000.0,0.000143,2]
[337477791,1725685846242,-1500.0,0.00014322,2]
[337477792,1725685846251,-158.84360256,0.00014329,2]
[337477793,1725685846261,-161.44,0.00014384,2]
[337477794,1725685846273,-1000.0,0.000144,2]
[337477795,1725685846291,-150.838,0.00014437,2]
[337477796,1725685846300,-577.792,0.00014437,2]
[337477797,1725685846309,-2996.309515,0.000145,2]
[337477798,1725685846318,-1000.0,0.000146,2]
[337477799,1725685846328,-158.84360256,0.00014614,2]
[337477800,1725685846337,-487.03368496,0.00014699,2]
[337477801,1725685846346,-1000.0,0.000147,2]
[337477802,1725685846355,-150.0,0.00014717,2]
[337477803,1725685846364,-150.0,0.00014718,2]
[337477804,1725685846373,-150.0,0.00014722,2]
[337477805,1725685846382,-150.0,0.00014723,2]
[337477806,1725685846391,-150.0,0.00014725,2]
[337477807,1725685846400,-150.0,0.00014727,2]
[337477808,1725685846409,-1500.0,0.00014728,2]
[337477809,1725685846418,-150.0,0.00014728,2]
[337477810,1725685846427,-150.0,0.0001473,2]
[337477811,1725685846436,-150.0,0.00014732,2]
[337477812,1725685846444,-150.0,0.00014733,2]
[337477813,1725685846454,-150.0,0.00014735,2]
[337477814,1725685846462,-150.0,0.00014736,2]
[337477815,1725685846471,-150.0,0.00014738,2]
[337477816,1725685846481,-150.0,0.00014741,2]
[337477817,1725685846490,-150.0,0.00014743,2]
[337477818,1725685846498,-150.0,0.00014745,2]
[337477819,1725685846507,-150.0,0.00014747,2]
[337477820,1725685846521,-274.23202314,0.00014748,2]
[337477821,1725685846531,-150.0,0.00014748,2]
[337477822,1725685846540,-150.0,0.00014751,2]
[337477823,1725685846549,-150.0,0.00014752,2]
[337477824,1725685846559,-150.0,0.00014766,2]
[337477825,1725685846567,-150.0,0.00014768,2]
[337477826,1725685846576,-150.0,0.0001477,2]
[337477827,1725685846586,-150.0,0.00014778,2]
[337477828,1725685846595,-150.0,0.00014779,2]
[337477829,1725685846604,-150.0,0.0001478,2]
[337477830,1725685846613,-537.3754713,0.00014783,2]
[337477831,1725685846623,-150.0,0.00014787,2]
[337477832,1725685846632,-150.0,0.00014787,2]
[337477833,1725685846641,-150.0,0.00014792,2]
[337477834,1725685846650,-500.0,0.00014794,2]
[337477835,1725685846659,-554.22,0.00014794,2]
[337477836,1725685846668,-525.61772091,0.00014794,2]
[337477837,1725685846678,-500.0,0.00014794,2]
[337477838,1725685846687,-500.58788471,0.00014794,2]
[337477839,1725685846696,-508.05404947,0.00014794,2]
[337477840,1725685846705,-500.0,0.00014794,2]
[337477841,1725685846715,-162.15256178,0.00014794,2]
[337477842,1725685846723,-500.0,0.00014794,2]
[337477843,1725685846733,-500.69659563,0.00014794,2]
[337477844,1725685846743,-500.0,0.00014794,2]
[337477845,1725685846752,-500.0,0.00014794,2]
[337477846,1725685846761,-500.0,0.00014794,2]
[337477847,1725685846772,-500.0,0.00014794,2]
[337477848,1725685846782,-395.5,0.00014794,2]
[337477849,1725685846791,-412.10971967,0.00014794,2]
[337477850,1725685846800,-500.0,0.00014794,2]
[337477851,1725685846810,-501.88708976,0.00014794,2]
[337477852,1725685846819,-500.0,0.00014794,2]
[337477853,1725685846829,-289.73708023,0.00014794,2]
[337477854,1725685846838,-500.0,0.00014794,2]
[337477855,1725685846846,-500.0,0.00014794,2]
[337477856,1725685846856,-500.0,0.00014794,2]
[337477857,1725685846865,-500.0,0.00014794,2]
[337477858,1725685846875,-500.0,0.00014794,2]